fUSD/lending_fUSD_20251102
["ID","MTS","AMOUNT","RATE_DAILY","PERIOD"]
[392868336,1762089040907,-500.0,0.00014973,2]
[392868338,1762089040917,-500.0,0.00014973,2]
[392868340,1762089040926,-500.0,0.00014973,2]
[392868342,1762089040935,-500.0,0.00014973,2]
[392868344,1762089040945,-4709.63133,0.0001498,2]
[392868346,1762089040954,-150.0,0.00014984,2]
[392868347,1762089040964,-573.0,0.00014984,2]
[392868348,1762089040973,-820.0,0.00014984,2]
[392868349,1762089040983,-607.0,0.00014984,2]
[392868350,1762089040992,-3523.709,0.00014984,2]
[392868351,1762089041001,-1314.0,0.00014984,2]
[392868352,1762089041010,-1741.635,0.00014984,2]
[392868353,1762089041020,-1271.0,0.00014984,2]
[392868354,1762089041030,-445.0,0.00014996,2]
[392868355,1762089041039,-444.90359296,0.00014997,2]
[392868356,1762089041048,-522.15935664,0.00014998,2]
[392868357,1762089041057,-500.0,0.00014998,2]
[392868358,1762089041066,-500.0,0.00014998,2]
[392868359,1762089041075,-500.0,0.00014998,2]
[392868360,1762089041084,-36114.0202867,0.00014999,2]
[392868361,1762089041093,-7438.2287176,0.00014999,2]
[392868362,1762089041102,-500.0,0.00014999,2]
[392868363,1762089041111,-500.0,0.00014999,2]
[392868364,1762089041120,-500.0,0.00014999,2]
[392868365,1762089041128,-500.0,0.00014999,2]
[392868366,1762089041139,-500.0,0.00014999,2]
[392868367,1762089041148,-500.0,0.00014999,2]
[392868368,1762089041157,-500.0,0.00014999,2]
[392868369,1762089041166,-351.16226879,0.00014999,2]
[392868370,1762089041175,-150.0,0.00014999,2]
[392868371,1762089041184,-150.0,0.00014999,2]
[392868372,1762089041193,-150.0,0.00014999,2]
[392868373,1762089041202,-150.0,0.00014999,2]
[392868374,1762089041211,-150.0,0.00014999,2]
[392868375,1762089041220,-150.0,0.00014999,2]
[392868376,1762089041230,-150.0,0.00014999,2]
[392868377,1762089041239,-500.0,0.00014999,2]
[392868378,1762089041248,-500.0,0.00014999,2]
[392868379,1762089041257,-500.0,0.00014999,2]
[392868380,1762089041267,-500.0,0.00014999,2]
[392868381,1762089041275,-500.0,0.00014999,2]
[392868382,1762089041285,-500.0,0.00014999,2]
[392868383,1762089041294,-500.0,0.00014999,2]
[392868384,1762089041304,-500.0,0.00014999,2]
[392868385,1762089041313,-500.0,0.00014999,2]
[392868386,1762089041323,-500.0,0.00014999,2]
[392868387,1762089041332,-150.0,0.00014999,2]
[392868388,1762089041341,-150.0,0.00014999,2]
[392868389,1762089041351,-150.0,0.00014999,2]
[392868390,1762089041361,-150.0,0.00014999,2]
[392868391,1762089041370,-158.40742326,0.00014999,2]
[392868392,1762089041379,-500.0,0.00014999,2]
[392868393,1762089041389,-150.0,0.00014999,2]
[392868394,1762089041398,-150.0,0.00014999,2]
[392868395,1762089041407,-150.0,0.00014999,2]
[392868396,1762089041417,-150.0,0.00014999,2]
[392868397,1762089041427,-150.0,0.00014999,2]
[392868398,1762089041436,-290.94,0.00014999,2]
[392868399,1762089041445,-231.15119241,0.00014999,2]
[392868400,1762089041454,-150.0,0.00014999,2]
[392868401,1762089041463,-150.0,0.00014999,2]
[392868402,1762089041473,-150.0,0.00014999,2]
[392868403,1762089041483,-150.0,0.00014999,2]
[392868404,1762089041492,-500.0,0.00014999,2]
[392868405,1762089041502,-694.0,0.00014999,2]
[392868406,1762089041512,-150.0,0.00014999,2]
[392868407,1762089041523,-150.0,0.00014999,2]
[392868408,1762089041532,-150.0,0.00014999,2]
[392868409,1762089041541,-150.0,0.00014999,2]
[392868410,1762089041551,-150.0,0.00014999,2]
[392868411,1762089041560,-150.0,0.00014999,2]
[392868412,1762089041570,-500.0,0.00014999,2]
[392868413,1762089041579,-150.0,0.00014999,2]
[392868414,1762089041588,-53134.5629564,0.00014999,2]
[392868415,1762089041597,-1308.058966,0.00014999,2]
[392868416,1762089041606,-86459.79913598,0.00015,2]
[392868417,1762089041703,-3273.01653635,0.00015,2]
[392868419,1762089041714,-1109.0,0.00015,2]
[392868437,1762089043294,-905.0,0.00014949,2]
[392868438,1762089043304,-666.471,0.00014949,2]
[392868439,1762089043313,-223627.23245816,0.00015,2]
[392868550,1762089046307,-24397.42526463,0.00015,2]
[392868551,1762089046417,-497.4654055,0.00015,2]
[392868552,1762089046429,-1024.38844394,0.00015,2]
[392868553,1762089060213,874.0,0.000108,5]
[392868554,1762089075858,500.0,0.00015,3]
[392868555,1762089084247,500.0,0.00015,3]
[392868556,1762089093471,500.0,0.00015,3]
[392868557,1762089101870,500.0,0.00015,3]
[392868558,1762089109796,500.0,0.00015,3]
[392868559,1762089138370,200.0,0.00014027,2]
[392868563,1762089214228,1245.71,0.00014027,2]
[392868565,1762089237931,305.65341712,0.00014662,2]
[392868566,1762089237956,750.34658288,0.00014662,2]
[392868567,1762089238813,-539.08214797,0.00014679,2]
[392868568,1762089241363,-51.91785203,0.00014679,2]
[392868569,1762089241386,-496.99827417,0.0001468,2]
[392868570,1762089258144,-300.0,0.00014679,2]
[392868571,1762089258177,-239.07,0.0001468,2]
[392868572,1762089260395,-203.95013313,0.0001468,2]
[392868573,1762089262496,-285.41446305,0.0001468,2]
[392868574,1762089265235,-500.0,0.0001468,2]
[392868575,1762089266651,-159.43005431,0.0001468,2]
[392868576,1762089268787,-189.71464775,0.0001468,2]
[392868577,1762089271415,-526.28160264,0.0001468,2]
[392868578,1762089297613,177.31,0.00011226,2]
[392868581,1762089364300,9822.7,0.000145,2]
[392868582,1762089364322,8936.31220759,0.000145,2]
[392868583,1762089375052,893.21759391,0.00014525,2]
[392868585,1762089386974,170.4801985,0.00013999,2]
[392868586,1762089386999,79.5198015,0.00013999,2]
[392868587,1762089392379,4294.71,0.00013999,2]
[392868593,1762089430970,282.88702813,0.00014155,2]
[392868595,1762089433207,906.80701139,0.0001425,2]
[392868597,1762089519333,166.66,0.00013699,2]
[392868598,1762089519596,166.66,0.00013895,2]
[392868599,1762089519797,166.66,0.00014091,2]
[392868600,1762089519993,166.66,0.00014287,2]
[392868601,1762089520196,166.66,0.00014483,2]
[392868607,1762089582741,411.59165844,0.00014665,2]
[392868609,1762089601630,209.76,0.00013967,2]
[392868631,1762089871221,473.22176739,0.00014535,2]
[392868632,1762089933221,-250.0,0.00014679,2]
[392868633,1762089933245,-76.65769365,0.00014679,2]
[392868634,1762089934704,1383.02095864,9e-05,2]
[392868641,1762089952024,10000.01,0.0001399,2]
[392868642,1762089952049,10000.01,0.0001399,2]
[392868643,1762089952075,10000.01,0.0001399,2]
[392868644,1762089952098,10000.01,0.0001399,2]
[392868645,1762089952121,4107.34860213,0.0001399,2]
[392868648,1762089999395,155.56119969,0.00014579,2]
[392868650,1762090034981,1040.36,0.00013944,2]
[392868654,1762090085131,658.87502431,0.0001439,2]
[392868665,1762090160784,2751.0,0.00013939,2]
[392868666,1762090185659,7249.01,0.00013936,2]
[392868667,1762090185683,10000.01,0.00013936,2]
[392868668,1762090185706,1283.0,0.00013936,2]
[392868669,1762090196591,4053.0,0.000101,5]
[392868714,1762090232420,-1200.0,0.00014678,2]
[392868716,1762090232429,-118.34230635,0.00014679,2]
[392868718,1762090232439,-393.48911962,0.00014679,2]
[392868720,1762090232448,-823.76309855,0.00014679,2]
[392868721,1762090232457,-300.0,0.00014679,2]
[392868722,1762090232466,-300.0,0.00014679,2]
[392868723,1762090232476,-166.66,0.00014679,2]
[392868724,1762090232487,-9175.83152495,0.0001468,2]
[392868725,1762090232497,-414.82021093,0.00014692,2]
[392868726,1762090232508,-209.76,0.00014743,2]
[392868727,1762090232517,-3742.4536763,0.000148,2]
[392868728,1762090232527,-150.0,0.00014823,2]
[392868729,1762090232536,-1000.0,0.00014836,2]
[392868730,1762090232545,-513.19135,0.0001485,2]
[392868731,1762090232554,-150.0,0.00014872,2]
[392868732,1762090232564,-150.0,0.0001489,2]
[392868733,1762090232573,-1268.43,0.00014891,2]
[392868734,1762090232583,-262.55887276,0.00014891,2]
[392868735,1762090232592,-620.0,0.00014891,2]
[392868736,1762090232602,-151.0,0.00014891,2]
[392868737,1762090232611,-151.0,0.00014891,2]
[392868738,1762090232620,-151.0,0.00014891,2]
[392868739,1762090232630,-151.0,0.00014891,2]
[392868740,1762090232640,-151.0,0.00014891,2]
[392868741,1762090232650,-151.0,0.00014891,2]
[392868742,1762090232662,-200.0,0.00014891,2]
[392868743,1762090232672,-151.0,0.00014891,2]
[392868744,1762090232681,-151.0,0.00014891,2]
[392868745,1762090232690,-151.0,0.00014891,2]
[392868746,1762090232699,-151.0,0.00014891,2]
[392868747,1762090232709,-151.0,0.00014891,2]
[392868748,1762090232718,-151.0,0.00014891,2]
[392868749,1762090232728,-496.47127164,0.00014891,2]
[392868750,1762090232737,-155.56119969,0.00014897,2]
[392868751,1762090232746,-1007.7775893,0.000149,2]
[392868752,1762090232755,-154.1742125,0.000149,2]
[392868753,1762090232765,-1963.33712784,0.000149,2]
[392868754,1762090232774,-6657.11284829,0.000149,2]
[392868758,1762090232841,-874.0,0.000149,2]
[392868759,1762090232860,-39.61667897,0.000149,2]
[392868760,1762090232870,-161.14510387,0.000149,2]
[392868762,1762090232879,-845.21424131,0.000149,2]
[392868763,1762090232888,-285.06374814,0.000149,2]
[392868764,1762090232898,-150.49798334,0.000149,2]
[392868765,1762090232909,-693.1191299,0.00014924,2]
[392868766,1762090232918,-168.0,0.00014952,2]
[392868767,1762090232927,-209.92275387,0.00014954,2]
[392868770,1762090238360,-267.52812392,0.00014954,2]
[392868771,1762090238371,-1000.0,0.00014956,2]
[392868772,1762090238381,-150.0,0.00014969,2]
[392868773,1762090238391,-1173.641,0.00014972,2]
[392868774,1762090238400,-181.207,0.00014972,2]
[392868775,1762090238412,-354.82561134,0.00014973,2]
[392868776,1762090238421,-500.0,0.00014973,2]
[392868777,1762090238431,-500.0,0.00014973,2]
[392868778,1762090238440,-157.96172807,0.00014973,2]
[392868779,1762090238452,-342.03827193,0.00014973,2]
[392868780,1762090238462,-500.0,0.00014973,2]
[392868781,1762090238472,-500.0,0.00014973,2]
[392868782,1762090238481,-500.0,0.00014973,2]
[392868783,1762090238491,-168.0,0.00014978,2]
[392868784,1762090238501,-513.19135,0.0001498,2]
[392868785,1762090238511,-1000.0,0.00014993,2]
[392868786,1762090238523,-1420.9140963,0.00014997,2]
[392868787,1762090238534,-512.46174766,0.00014997,2]
[392868821,1762090240744,-0.00200873,0.00014997,2]
[392868822,1762090240756,-1107.5106,0.00014997,2]
[392868880,1762090243455,-396.66131007,0.00014997,2]
[392868882,1762090243467,-2622.20616171,0.00014997,2]
[392868895,1762090243635,-4348.14214573,0.00014997,2]
[392868896,1762090243648,-7742.9530424,0.00014997,2]
[392868897,1762090243658,-2030.0207667,0.00014997,2]
[392868898,1762090243668,-557.07565802,0.00014999,2]
[392868899,1762090243678,-254.20644937,0.00014999,2]
[392868900,1762090243687,-377.42163098,0.00014999,2]
[392868901,1762090243697,-173.18401907,0.00014999,2]
[392868902,1762090243707,-500.0,0.00014999,2]
[392868903,1762090243717,-500.0,0.00014999,2]
[392868904,1762090243727,-500.0,0.00014999,2]
[392868905,1762090243735,-500.0,0.00014999,2]
[392868906,1762090243744,-500.0,0.00014999,2]
[392868907,1762090243753,-500.0,0.00014999,2]
[392868908,1762090243762,-500.0,0.00014999,2]
[392868909,1762090243771,-500.0,0.00014999,2]
[392868910,1762090243780,-500.0,0.00014999,2]
[392868911,1762090243789,-520.73770232,0.00014999,2]
[392868912,1762090243798,-500.0,0.00014999,2]
[392868913,1762090243807,-500.0,0.00014999,2]
[392868914,1762090243817,-500.0,0.00014999,2]
[392868915,1762090243825,-500.0,0.00014999,2]
[392868916,1762090243834,-160.81,0.00014999,2]
[392868917,1762090243843,-500.0,0.00014999,2]
[392868918,1762090243852,-500.0,0.00014999,2]
[392868919,1762090243861,-479.2415512,0.00014999,2]
[392868920,1762090243870,-528.33351556,0.00014999,2]
[392868921,1762090243879,-377.94170616,0.00014999,2]
[392868922,1762090243888,-150.0,0.00014999,2]
[392868923,1762090243897,-150.0,0.00014999,2]
[392868924,1762090243906,-500.0,0.00014999,2]
[392868925,1762090243916,-150.0,0.00014999,2]
[392868926,1762090243924,-150.0,0.00014999,2]
[392868927,1762090243933,-211.38179049,0.00014999,2]
[392868928,1762090243942,-150.0,0.00014999,2]
[392868930,1762090243951,-250.70575794,0.00014999,2]
[392868947,1762090244198,-665.0,0.00014999,2]
[392868948,1762090244209,-150.0,0.00014999,2]
[392868949,1762090244219,-150.0,0.00014999,2]
[392868950,1762090244228,-150.0,0.00014999,2]
[392868951,1762090244237,-150.0,0.00014999,2]
[392868952,1762090244246,-500.0,0.00014999,2]
[392868953,1762090244255,-664.0,0.00015,2]
[392868954,1762090244263,-524458.84426331,0.00015,2]
[392868958,1762090246448,-121679.8502588,0.000149,2]
[392868959,1762090246459,-32462.824,0.000149,2]
[392868960,1762090246470,-162715.48039803,0.000149,2]
[392868961,1762090246483,-19575.46352859,0.000149,2]
[392868962,1762090246495,-935.18039698,0.000149,2]
[392868963,1762090246528,-1231.00189663,0.000149,2]
[392868964,1762090246539,-441.92,0.000149,2]
[392868965,1762090246550,-425.91699998,0.000149,2]
[392868984,1762090263701,170.0,0.00014484,2]
[392868988,1762090352098,155.263093,0.00014999,8]
[392868990,1762090382485,188.4755,0.00014593,2]
[392868996,1762090501181,245.0,0.0001463,2]
[392869003,1762090610991,183.35,0.00014025,2]
[392869004,1762090625121,3335.49,0.00014025,2]
[392869005,1762090634800,5516.0,0.000101,5]
[392869006,1762090635055,4484.0,0.000101,3]
[392869009,1762090698095,6481.17,0.00014014,2]
[392869010,1762090698119,4961.96,0.00014014,2]
[392869011,1762090700148,1054.0,0.00014519,2]
[392869012,1762090705102,1054.0,0.00014509,2]
[392869014,1762090727647,1855.07554193,0.000101,5]
[392869015,1762090727672,3660.92445807,0.000101,5]
[392869016,1762090727864,5516.0,0.000101,3]
[392869017,1762090728088,1699.0,0.0001,2]
[392869041,1762090904248,152.0,0.00014694,4]
[392869042,1762090904572,152.0,0.00014205,3]
[392869044,1762090926695,214.0,0.00014651,2]
[392869045,1762090935712,500.0,0.00012012,2]
[392869047,1762090944530,326.65407,0.00012012,2]
[392869048,1762090995819,183.39814325,0.00014578,2]
[392869051,1762091115310,6.99778675,0.00013488,2]
[392869052,1762091115339,263.01218351,0.00013488,2]
[392869053,1762091121619,150.0,0.00013488,2]
[392869054,1762091121664,150.0,0.0001355,2]
[392869055,1762091121731,150.0,0.00013613,2]
[392869056,1762091122573,150.0,0.00013675,2]
[392869057,1762091122630,150.0,0.00013737,2]
[392869058,1762091122679,150.0,0.000138,2]
[392869059,1762091122717,150.0,0.00013862,2]
[392869060,1762091122772,150.0,0.00013925,2]
[392869061,1762091122873,150.0,0.00013987,2]
[392869062,1762091122916,150.0,0.0001405,2]
[392869063,1762091122961,150.0,0.00014112,2]
[392869064,1762091123010,150.0,0.00014175,2]
[392869065,1762091123061,150.0,0.00014237,2]
[392869066,1762091123106,150.0,0.00014299,2]
[392869067,1762091123242,150.0,0.00014362,2]
[392869068,1762091123289,150.0,0.00014424,2]
[392869069,1762091123332,150.0,0.00014487,2]
[392869070,1762091123382,150.0,0.00014549,2]
[392869071,1762091123432,150.0,0.00014612,2]
[392869072,1762091123474,150.0,0.00014674,2]
[392869073,1762091126113,150.0,0.00013488,2]
[392869074,1762091135746,268.1496886,0.00013488,2]
[392869075,1762091137727,150.0,0.00013488,2]
[392869076,1762091137782,150.0,0.00014237,2]
[392869077,1762091301888,150.0,0.0001393,2]
[392869078,1762091338164,240.0,0.00014277,2]
[392869079,1762091349775,240.0,0.00014407,2]
[392869080,1762091355349,240.0,0.00014274,2]
[392869081,1762091360768,240.0,0.00014273,2]
[392869082,1762091366207,240.0,0.000143,2]
[392869095,1762091431604,-170.0,0.00014692,2]
[392869096,1762091431614,-250.0,0.00014694,2]
[392869097,1762091431623,-195.0,0.00014695,2]
[392869098,1762091431632,-385.0,0.00014731,2]
[392869099,1762091431643,-440.0,0.00014731,2]
[392869100,1762091431652,-825.0,0.00014731,2]
[392869101,1762091431663,-584.87888587,0.00014731,2]
[392869102,1762091431674,-300.53099331,0.00014731,2]
[392869103,1762091431685,-150.0,0.00014737,2]
[392869104,1762091431695,-203.9581863,0.00014789,2]
[392869105,1762091431709,-621.0418137,0.00014789,2]
[392869106,1762091431718,-79.23546671,0.00014789,2]
[392869107,1762091431756,-668.58325865,0.00014789,2]
[392869108,1762091431804,-77.18127464,0.00014789,2]
[392869109,1762091431813,-150.0,0.00014799,2]
[392869110,1762091431823,-367.2862,0.000148,2]
[392869111,1762091431832,-391.46070484,0.00014836,2]
[392869112,1762091431860,-340.79236479,0.00014836,2]
[392869113,1762091431869,-1200.0,0.00014849,2]
[392869114,1762091431879,-500.0,0.00014849,2]
[392869115,1762091431888,-313.91404163,0.0001485,2]
[392869116,1762091431931,-2825.84017837,0.0001485,2]
[392869117,1762091431941,-150.0,0.00014861,2]
[392869118,1762091431950,-168.33762575,0.00014873,2]
[392869119,1762091431961,-300.0,0.00014875,2]
[392869120,1762091431970,-300.0,0.00014875,2]
[392869121,1762091431979,-168.33762573,0.00014877,2]
[392869122,1762091431988,-168.33762573,0.00014881,2]
[392869123,1762091431998,-170.0,0.00014884,2]
[392869124,1762091432007,-168.33762573,0.00014885,2]
[392869126,1762091432016,-168.33762573,0.00014888,2]
[392869128,1762091432026,-150.0,0.0001489,2]
[392869130,1762091432035,-313.13464191,0.0001489,2]
[392869132,1762091432044,-500.0,0.00014891,2]
[392869134,1762091432054,-151.0,0.00014891,2]
[392869136,1762091432064,-500.0,0.00014891,2]
[392869138,1762091432078,-575.20566972,0.00014891,2]
[392869140,1762091432087,-500.0,0.00014891,2]
[392869142,1762091432097,-151.0,0.00014891,2]
[392869144,1762091432106,-500.0,0.00014891,2]
[392869146,1762091432118,-151.0,0.00014891,2]
[392869148,1762091432127,-151.0,0.00014891,2]
[392869150,1762091432136,-151.0,0.00014891,2]
[392869152,1762091432146,-151.0,0.00014891,2]
[392869154,1762091432156,-151.0,0.00014891,2]
[392869156,1762091432166,-151.0,0.00014891,2]
[392869158,1762091432175,-151.0,0.00014891,2]
[392869159,1762091432184,-250.0,0.00014891,2]
[392869161,1762091432193,-496.47127164,0.00014891,2]
[392869163,1762091432202,-500.0,0.00014891,2]
[392869165,1762091432212,-500.0,0.00014891,2]
[392869167,1762091432221,-225.66820963,0.00014891,2]
[392869169,1762091432231,-293.93037575,0.00014891,2]
[392869171,1762091432240,-195.42236844,0.00014891,2]
[392869173,1762091432249,-151.0,0.00014891,2]
[392869175,1762091432258,-151.0,0.00014891,2]
[392869177,1762091432268,-151.0,0.00014891,2]
[392869179,1762091432278,-168.33762573,0.00014892,2]
[392869181,1762091432287,-168.33762573,0.00014896,2]
[392869183,1762091432296,-1266.569,0.00014898,2]
[392869185,1762091432305,-180.185,0.00014898,2]
[392869187,1762091432314,-12492.09146571,0.00014899,2]
[392869189,1762091432323,-500.0,0.00014899,2]
[392869191,1762091432332,-500.0,0.00014899,2]
[392869193,1762091432342,-500.0,0.00014899,2]
[392869195,1762091432350,-500.0,0.00014899,2]
[392869197,1762091432360,-500.0,0.00014899,2]
[392869199,1762091432369,-500.0,0.00014899,2]
[392869201,1762091432377,-500.0,0.00014899,2]
[392869202,1762091432386,-500.0,0.00014899,2]
[392869204,1762091432395,-500.0,0.00014899,2]
[392869206,1762091432404,-500.0,0.00014899,2]
[392869208,1762091432413,-500.0,0.00014899,2]
[392869210,1762091432422,-500.0,0.00014899,2]
[392869212,1762091432431,-500.0,0.00014899,2]
[392869214,1762091432441,-500.0,0.00014899,2]
[392869216,1762091432449,-500.0,0.00014899,2]
[392869218,1762091432458,-500.0,0.00014899,2]
[392869220,1762091432468,-500.0,0.00014899,2]
[392869222,1762091432478,-500.0,0.00014899,2]
[392869224,1762091432487,-500.0,0.00014899,2]
[392869226,1762091432497,-607.63563151,0.00014899,2]
[392869228,1762091432507,-500.0,0.00014899,2]
[392869230,1762091432517,-500.0,0.00014899,2]
[392869232,1762091432526,-500.0,0.00014899,2]
[392869234,1762091432535,-500.0,0.00014899,2]
[392869236,1762091432545,-1255.7,0.00014899,2]
[392869238,1762091432553,-80532.36252099,0.000149,2]
[392869240,1762091432562,-500.0,0.000149,2]
[392869242,1762091432572,-159.21733898,0.000149,2]
[392869244,1762091432581,-1932.92711523,0.000149,2]
[392869246,1762091432591,-2105.2865,0.000149,2]
[392869248,1762091432600,-167.03104492,0.000149,2]
[392869250,1762091432609,-168.33762573,0.000149,2]
[392869252,1762091432620,-1376.61006736,0.000149,2]
[392869254,1762091432629,-384.68373694,0.000149,2]
[392869256,1762091432639,-382.45025652,0.000149,2]
[392869258,1762091432648,-1425.0,0.00014921,2]
[392869259,1762091432657,-150.0,0.00014924,2]
[392869261,1762091432667,-477.45087779,0.00014954,2]
[392869263,1762091432676,-151.0,0.00014959,2]
[392869265,1762091432685,-13189.3128331,0.00014962,2]
[392869267,1762091432694,-3891.5963031,0.00014962,2]
[392869269,1762091432705,-1929.8880075,0.00014962,2]
[392869271,1762091432714,-170.0,0.00014971,2]
[392869273,1762091432723,-542.320165,0.00014973,2]
[392869275,1762091432733,-161.80681393,0.00014973,2]
[392869277,1762091432742,-500.0,0.00014973,2]
[392869279,1762091432751,-500.0,0.00014973,2]
[392869281,1762091432760,-554.47041519,0.00014973,2]
[392869283,1762091432769,-500.0,0.00014973,2]
[392869285,1762091432778,-500.0,0.00014973,2]
[392869287,1762091432787,-500.0,0.00014973,2]
[392869288,1762091432795,-500.0,0.00014973,2]
[392869290,1762091432804,-500.0,0.00014973,2]
[392869292,1762091432814,-500.0,0.00014973,2]
[392869294,1762091432823,-500.0,0.00014973,2]
[392869296,1762091432832,-500.0,0.00014973,2]
[392869298,1762091432841,-500.0,0.00014973,2]
[392869300,1762091432850,-500.0,0.00014973,2]
[392869302,1762091432858,-500.0,0.00014973,2]
[392869304,1762091432868,-500.0,0.00014973,2]
[392869306,1762091432877,-500.0,0.00014973,2]
[392869308,1762091432887,-602.15865985,0.00014973,2]
[392869310,1762091432896,-3139.75422,0.0001498,2]
[392869312,1762091432905,-170.0,0.00014981,2]
[392869314,1762091432914,-150.0,0.00014986,2]
[392869316,1762091432923,-150.0,0.00014986,2]
[392869318,1762091432932,-6630.0,0.00014994,2]
[392869320,1762091432941,-4664.322,0.00014994,2]
[392869322,1762091432949,-151.0,0.00014997,2]
[392869323,1762091432959,-505.64838895,0.00014999,2]
[392869325,1762091432968,-500.0,0.00014999,2]
[392869327,1762091432977,-575.48368105,0.00014999,2]
[392869329,1762091432986,-500.0,0.00014999,2]
[392869331,1762091432995,-500.0,0.00014999,2]
[392869333,1762091433004,-500.0,0.00014999,2]
[392869335,1762091433013,-178.81469196,0.00014999,2]
[392869337,1762091433022,-150.0,0.00014999,2]
[392869339,1762091433031,-200.0,0.00014999,2]
[392869341,1762091433041,-200.0,0.00014999,2]
[392869343,1762091433050,-150.0,0.00014999,2]
[392869345,1762091433059,-200.0,0.00014999,2]
[392869347,1762091433070,-152.49763088,0.00014999,2]
[392869349,1762091433080,-150.0,0.00014999,2]
[392869351,1762091433090,-164.19797454,0.00014999,2]
[392869353,1762091433099,-626.08232765,0.00014999,2]
[392869355,1762091433107,-150.0,0.00014999,2]
[392869356,1762091433118,-150.0,0.00014999,2]
[392869359,1762091433127,-200.0,0.00014999,2]
[392869361,1762091433137,-519.19897658,0.00014999,2]
[392869362,1762091433148,-500.0,0.00014999,2]
[392869364,1762091433158,-500.0,0.00014999,2]
[392869366,1762091433167,-500.0,0.00014999,2]
[392869368,1762091433177,-500.0,0.00014999,2]
[392869370,1762091433188,-500.0,0.00014999,2]
[392869372,1762091433197,-500.0,0.00014999,2]
[392869374,1762091433207,-150.0,0.00014999,2]
[392869376,1762091433216,-637.0,0.00014999,2]
[392869378,1762091433225,-200.0,0.00014999,2]
[392869380,1762091433234,-150.0,0.00014999,2]
[392869382,1762091433243,-150.0,0.00014999,2]
[392869384,1762091433252,-531.0,0.00015,2]
[392869386,1762091433261,-174660.10566943,0.00015,2]
[392869592,1762091437593,-172641.6890894,0.00015,2]
[392869593,1762091437604,-349132.71509445,0.00015,2]
[392869594,1762091437617,-163.0,0.00015,2]
[392869598,1762091437627,-903688.43824776,0.00015,2]
[392869603,1762091437929,-197281.40460334,0.00015,2]
[392869605,1762091437939,-123804.36564986,0.00015,2]
[392869606,1762091437949,-461275.89580871,0.00015,2]
[392869607,1762091437981,-4448.9553674,0.00015,2]
[392869608,1762091437993,-30489.22871324,0.00015,2]
[392869609,1762091438004,-47004.40578389,0.00015,2]
[392869610,1762091438019,-640.87308337,0.00015,2]
[392869611,1762091438031,-1485.01791513,0.00015,2]
[392869612,1762091438040,-1000.0,0.00015,2]
[392869613,1762091438050,-546.24391219,0.00015,2]
[392869614,1762091438059,-499.53817268,0.00015,2]
[392869616,1762091439827,-1224.78517517,0.00015,2]
[392869618,1762091440424,-4540.77445097,0.00015,2]
[392869628,1762091442732,-654.89769061,0.00015,2]
[392869629,1762091442843,-2019.21905468,0.00015,2]
[392869630,1762091442901,-7580.186536,0.00015,2]
[392869631,1762091442913,-343.11,0.00015,2]
[392869635,1762091445595,-496.92149955,0.00015,2]
[392869636,1762091445807,-2637.06385189,0.00015,2]
[392869637,1762091480691,221.66766337,0.00014674,2]